fUSD/lending_fUSD_20250923
["ID","MTS","AMOUNT","RATE_DAILY","PERIOD"]
[387211796,1758651033408,-258.0,0.00023014,7]
[387211799,1758651033418,-170.0,0.00023014,7]
[387211800,1758651033428,-150.0,0.00023014,2]
[387211803,1758651033439,-150.0,0.00023014,2]
[387211804,1758651033449,-150.0,0.00023014,2]
[387211807,1758651033459,-150.0,0.00023014,2]
[387211809,1758651033469,-500.0,0.00023014,2]
[387211811,1758651033480,-221.8968327,0.00023014,2]
[387211813,1758651033490,-150.0,0.00023014,2]
[387211814,1758651033500,-500.0,0.00023014,2]
[387211817,1758651033511,-500.0,0.00023014,2]
[387211819,1758651033521,-200.0,0.00023014,2]
[387211820,1758651033531,-150.0,0.00023014,2]
[387211822,1758651033541,-150.0,0.00023014,2]
[387211824,1758651033551,-150.0,0.00023014,2]
[387211826,1758651033561,-500.0,0.00023014,2]
[387211829,1758651033571,-422.0,0.00023014,2]
[387211831,1758651033582,-150.0,0.00023014,2]
[387211833,1758651033592,-152.0,0.00023069,3]
[387211835,1758651033602,-403.0,0.0002317,2]
[387211837,1758651033611,-600.0,0.00023206,2]
[387211839,1758651033621,-168.0,0.00023207,2]
[387211841,1758651033631,-200.0,0.0002323,2]
[387211843,1758651033641,-168.0,0.00023245,2]
[387211845,1758651033650,-2191.55499147,0.00023247,2]
[387211847,1758651033665,-2166.55552412,0.00023247,2]
[387211849,1758651033675,-500.0,0.0002326,2]
[387211851,1758651033685,-150.0,0.00023268,4]
[387211853,1758651033695,-150.0,0.00023268,4]
[387211855,1758651033706,-150.0,0.00023268,4]
[387211857,1758651033716,-150.0,0.00023268,4]
[387211859,1758651033726,-168.0,0.00023278,2]
[387211861,1758651033736,-542.28,0.00023288,2]
[387211863,1758651033746,-410.63,0.00023288,2]
[387211865,1758651033755,-200.0,0.00023288,2]
[387211867,1758651033765,-150.0,0.00023288,2]
[387211869,1758651033775,-150.0,0.00023288,2]
[387211871,1758651033785,-200.0,0.00023288,2]
[387211873,1758651033796,-500.0,0.00023288,2]
[387211875,1758651033806,-200.0,0.00023288,2]
[387211877,1758651033815,-500.0,0.00023288,2]
[387211879,1758651033824,-500.0,0.00023288,2]
[387211881,1758651033834,-200.0,0.00023288,2]
[387211883,1758651033844,-200.0,0.00023288,2]
[387211885,1758651033854,-200.0,0.00023288,2]
[387211887,1758651033863,-500.0,0.00023288,2]
[387211889,1758651033872,-422.0,0.00023288,2]
[387211891,1758651033882,-167.092,0.00023288,2]
[387211893,1758651033892,-20000.0,0.00023296,2]
[387211895,1758651033901,-587.0,0.00023323,2]
[387211897,1758651033911,-880.0,0.00023347,2]
[387211899,1758651033921,-4358.11051554,0.0002341,2]
[387211901,1758651033931,-1219.15489451,0.00023462,2]
[387211903,1758651033940,-168.0,0.00023473,2]
[387211905,1758651033950,-603.84985297,0.00023534,2]
[387211907,1758651033959,-2351.0,0.00023549,2]
[387211909,1758651033969,-1089.0,0.00023553,2]
[387211911,1758651033979,-1000.0,0.00023554,2]
[387211913,1758651033988,-1000.0,0.00023554,2]
[387211915,1758651033998,-1000.0,0.00023555,2]
[387211917,1758651034008,-33291.6323,0.00023555,2]
[387211919,1758651034017,-96523.47958607,0.00023555,2]
[387211997,1758651034802,-258.87161287,0.00023555,2]
[387211999,1758651034814,-4698.43595338,0.00023555,2]
[387212003,1758651034841,-1868.98717851,0.00023555,2]
[387212005,1758651034852,-2022.93,0.00023555,2]
[387212008,1758651034864,-4738.47635454,0.00023555,2]
[387212010,1758651034875,-81696.31111463,0.00023555,2]
[387212012,1758651034885,-150.0,0.00023562,2]
[387212014,1758651034894,-200.0,0.00023562,2]
[387212016,1758651034903,-500.0,0.00023562,2]
[387212018,1758651034913,-500.0,0.00023562,2]
[387212020,1758651034922,-500.0,0.00023562,2]
[387212022,1758651034932,-500.0,0.00023562,2]
[387212024,1758651034942,-422.0,0.00023562,2]
[387212026,1758651034951,-168.0,0.00023568,2]
[387212028,1758651034960,-4358.11051554,0.00023572,2]
[387212030,1758651034969,-150.0,0.00023575,4]
[387212032,1758651034979,-1202.38,0.00023593,2]
[387212034,1758651034988,-262.04,0.00023593,2]
[387212036,1758651034998,-600.0,0.000236,8]
[387212038,1758651035007,-1241.0,0.00023619,2]
[387212040,1758651035017,-1706.41,0.00023654,2]
[387212042,1758651035028,-1706.41,0.00023654,2]
[387212044,1758651035038,-1706.41,0.00023654,2]
[387212046,1758651035049,-1706.41,0.00023654,2]
[387212048,1758651035059,-1706.41,0.00023654,2]
[387212050,1758651035068,-1706.41,0.00023654,2]
[387212052,1758651035078,-1706.41,0.00023654,2]
[387212054,1758651035088,-1706.41,0.00023654,2]
[387212056,1758651035097,-1706.41,0.00023654,2]
[387212058,1758651035107,-1706.41,0.00023654,2]
[387212060,1758651035117,-1706.41,0.00023654,2]
[387212062,1758651035127,-1706.41,0.00023654,2]
[387212064,1758651035137,-1706.41,0.00023654,2]
[387212066,1758651035147,-1706.41,0.00023654,2]
[387212068,1758651035157,-1706.41,0.00023654,2]
[387212070,1758651035167,-1706.41,0.00023654,2]
[387212072,1758651035176,-1706.41,0.00023654,2]
[387212074,1758651035186,-1706.41,0.00023654,2]
[387212076,1758651035196,-1706.41,0.00023654,2]
[387212078,1758651035206,-1706.41,0.00023654,2]
[387212088,1758651035309,-1706.41,0.00023654,2]
[387212089,1758651035320,-1706.41,0.00023654,2]
[387212090,1758651035330,-1706.41,0.00023654,2]
[387212091,1758651035339,-1706.63279877,0.00023654,2]
[387212092,1758651035349,-173177.1196142,0.00023655,2]
[387212093,1758651035360,-9528.74188206,0.00023655,2]
[387212094,1758651035369,-500.0,0.00023655,5]
[387212095,1758651035378,-151.0,0.00023655,7]
[387212097,1758651035387,-151.0,0.00023655,7]
[387212099,1758651035397,-151.0,0.00023655,7]
[387212101,1758651035410,-151.0,0.00023655,7]
[387212103,1758651035420,-151.0,0.00023655,7]
[387212105,1758651035429,-151.0,0.00023655,7]
[387212107,1758651035439,-151.0,0.00023655,7]
[387212109,1758651035448,-151.0,0.00023655,7]
[387212111,1758651035458,-151.0,0.00023655,7]
[387212113,1758651035467,-151.0,0.00023655,7]
[387212115,1758651035477,-151.0,0.00023655,7]
[387212117,1758651035487,-151.0,0.00023655,7]
[387212119,1758651035496,-186.085336,0.00023655,7]
[387212121,1758651035506,-151.0,0.00023655,7]
[387212123,1758651035516,-151.0,0.00023655,7]
[387212125,1758651035525,-186.085336,0.00023655,7]
[387212126,1758651035535,-297.379772,0.00023655,7]
[387212128,1758651035544,-151.0,0.00023655,7]
[387212130,1758651035554,-186.085336,0.00023655,7]
[387212132,1758651035563,-186.085336,0.00023655,7]
[387212134,1758651035573,-151.0,0.00023655,7]
[387212136,1758651035582,-151.0,0.00023655,7]
[387212138,1758651035591,-151.0,0.00023655,7]
[387212140,1758651035600,-151.0,0.00023655,7]
[387212142,1758651035610,-151.0,0.00023655,7]
[387212144,1758651035619,-151.0,0.00023655,7]
[387212146,1758651035629,-151.0,0.00023655,7]
[387212148,1758651035638,-151.0,0.00023655,7]
[387212150,1758651035647,-153.810745,0.00023655,7]
[387212152,1758651035656,-269.859599,0.00023655,7]
[387212154,1758651035666,-269.859599,0.00023655,7]
[387212156,1758651035675,-269.859599,0.00023655,7]
[387212158,1758651035685,-269.859599,0.00023655,7]
[387212160,1758651035694,-151.0,0.00023655,7]
[387212162,1758651035704,-151.0,0.00023655,7]
[387212164,1758651035714,-151.0,0.00023655,7]
[387212166,1758651035723,-151.0,0.00023655,7]
[387212168,1758651035732,-151.0,0.00023655,7]
[387212170,1758651035741,-161.333794,0.00023655,7]
[387212172,1758651035751,-285.308638,0.00023655,7]
[387212174,1758651035760,-285.308638,0.00023655,7]
[387212176,1758651035769,-285.308638,0.00023655,7]
[387212178,1758651035779,-285.308638,0.00023655,7]
[387212180,1758651035788,-151.0,0.00023655,7]
[387212183,1758651035800,-151.0,0.00023655,7]
[387212184,1758651035809,-152.740742,0.00023655,7]
[387212186,1758651035818,-153.915536,0.00023655,7]
[387212188,1758651035829,-151.0,0.00023655,7]
[387212190,1758651035838,-151.0,0.00023655,7]
[387212192,1758651035847,-212.22752,0.00023655,7]
[387212194,1758651035856,-151.0,0.00023655,7]
[387212196,1758651035866,-214.603989,0.00023655,7]
[387212198,1758651035875,-153.739973,0.00023655,7]
[387212200,1758651035885,-214.603989,0.00023655,7]
[387212202,1758651035894,-214.603989,0.00023655,7]
[387212205,1758651035904,-214.603989,0.00023655,7]
[387212207,1758651035914,-151.0,0.00023655,7]
[387212208,1758651035923,-151.0,0.00023655,7]
[387212210,1758651035932,-194.431228,0.00023655,7]
[387212212,1758651035941,-194.431228,0.00023655,7]
[387212214,1758651035950,-194.431228,0.00023655,7]
[387212216,1758651035959,-194.431228,0.00023655,7]
[387212218,1758651035969,-151.0,0.00023655,7]
[387212220,1758651035977,-165.232207,0.00023655,7]
[387212222,1758651035986,-151.0,0.00023655,7]
[387212224,1758651035995,-151.0,0.00023655,7]
[387212226,1758651036005,-151.0,0.00023655,7]
[387212228,1758651036015,-300.17952,0.00023655,7]
[387212230,1758651036023,-151.0,0.00023655,7]
[387212232,1758651036033,-151.0,0.00023655,7]
[387212234,1758651036047,-151.0,0.00023655,7]
[387212236,1758651036061,-151.0,0.00023655,7]
[387212238,1758651036070,-208.365227,0.00023655,7]
[387212240,1758651036079,-151.0,0.00023655,7]
[387212242,1758651036088,-160.0,0.00023655,14]
[387212244,1758651036097,-160.0,0.00023655,14]
[387212246,1758651036106,-160.0,0.00023655,14]
[387212248,1758651036115,-160.0,0.00023655,14]
[387212250,1758651036124,-160.0,0.00023655,14]
[387212252,1758651036133,-160.0,0.00023655,14]
[387212254,1758651036142,-160.0,0.00023655,14]
[387212256,1758651036151,-160.0,0.00023655,14]
[387212258,1758651036160,-151.0,0.00023655,7]
[387212260,1758651036169,-160.0,0.00023655,14]
[387212262,1758651036178,-160.0,0.00023655,14]
[387212264,1758651036188,-160.0,0.00023655,14]
[387212266,1758651036197,-160.0,0.00023655,14]
[387212268,1758651036206,-160.0,0.00023655,14]
[387212270,1758651036215,-311.076983,0.00023655,7]
[387212272,1758651036225,-160.0,0.00023655,14]
[387212274,1758651036235,-160.0,0.00023655,14]
[387212277,1758651036244,-160.0,0.00023655,14]
[387212278,1758651036253,-160.0,0.00023655,14]
[387212280,1758651036262,-160.0,0.00023655,14]
[387212282,1758651036272,-160.0,0.00023655,14]
[387212285,1758651036284,-311.076983,0.00023655,7]
[387212287,1758651036293,-160.0,0.00023655,14]
[387212289,1758651036303,-160.0,0.00023655,14]
[387212291,1758651036312,-160.0,0.00023655,14]
[387212293,1758651036321,-160.0,0.00023655,14]
[387212295,1758651036332,-152.695643,0.00023655,14]
[387212297,1758651036341,-311.076983,0.00023655,7]
[387212299,1758651036351,-311.076983,0.00023655,7]
[387212301,1758651036360,-151.0,0.00023655,7]
[387212303,1758651036369,-151.0,0.00023655,7]
[387212305,1758651036378,-151.0,0.00023655,7]
[387212307,1758651036387,-151.0,0.00023655,7]
[387212309,1758651036396,-151.0,0.00023655,7]
[387212311,1758651036406,-151.0,0.00023655,7]
[387212313,1758651036418,-151.0,0.00023655,7]
[387212315,1758651036427,-151.0,0.00023655,7]
[387212317,1758651036436,-152.852438,0.00023655,7]
[387212319,1758651036445,-163.592164,0.00023655,7]
[387212321,1758651036454,-151.0,0.00023655,7]
[387212322,1758651036463,-152.8517,0.00023655,7]
[387212323,1758651036472,-151.0,0.00023655,7]
[387212324,1758651036481,-151.0,0.00023655,7]
[387212325,1758651036490,-151.0,0.00023655,7]
[387212326,1758651036499,-151.0,0.00023655,7]
[387212327,1758651036508,-151.0,0.00023655,7]
[387212328,1758651036517,-151.0,0.00023655,7]
[387212329,1758651036527,-151.0,0.00023655,7]
[387212330,1758651036536,-151.0,0.00023655,7]
[387212331,1758651036545,-151.0,0.00023655,7]
[387212332,1758651036555,-151.0,0.00023655,7]
[387212333,1758651036564,-151.0,0.00023655,7]
[387212334,1758651036574,-151.0,0.00023655,7]
[387212335,1758651036584,-753.766686,0.00023655,7]
[387212336,1758651036593,-753.766686,0.00023655,7]
[387212337,1758651036602,-753.766686,0.00023655,7]
[387212338,1758651036612,-753.766686,0.00023655,7]
[387212339,1758651036621,-155.962402,0.00023655,7]
[387212340,1758651036631,-151.0,0.00023655,7]
[387212341,1758651036640,-279.481683,0.00023655,7]
[387212342,1758651036650,-279.481683,0.00023655,7]
[387212343,1758651036659,-279.481683,0.00023655,7]
[387212344,1758651036669,-279.481683,0.00023655,7]
[387212345,1758651036678,-151.0,0.00023655,7]
[387212346,1758651036687,-296.746062,0.00023655,7]
[387212347,1758651036696,-256.685846,0.00023655,7]
[387212348,1758651036705,-151.0,0.00023655,7]
[387212349,1758651036715,-151.0,0.00023655,7]
[387212350,1758651036730,-151.0,0.00023655,7]
[387212351,1758651036740,-151.0,0.00023655,7]
[387212352,1758651036750,-151.0,0.00023655,7]
[387212353,1758651036759,-217.12372,0.00023655,7]
[387212354,1758651036768,-500.0,0.00023667,2]
[387212355,1758651036777,-150.0,0.00023677,4]
[387212356,1758651036787,-150.0,0.00023677,4]
[387212357,1758651036797,-150.0,0.00023677,4]
[387212358,1758651036806,-1300.0,0.000237,8]
[387212359,1758651036816,-4358.11051554,0.00023735,2]
[387212360,1758651036825,-1219.15489449,0.00023775,2]
[387212361,1758651036834,-20000.0,0.00023796,2]
[387212362,1758651036843,-2000.0,0.000238,8]
[387212363,1758651036852,-1674.5382543,0.00023801,2]
[387212364,1758651036934,-1168.98336902,0.00023801,2]
[387212365,1758651036945,-459.78471852,0.00023801,2]
[387212366,1758651036956,-542.0844,0.00023801,2]
[387212367,1758651036968,-1954.60925816,0.00023801,2]
[387212368,1758651036977,-289.39074184,0.0002381,2]
[387212369,1758651037033,-5510.60925816,0.0002381,2]
[387212370,1758651037043,-4325.12547889,0.00023818,2]
[387212371,1758651037056,-1474.87452111,0.00023818,2]
[387212372,1758651037067,-224.19043827,0.00023826,2]
[387212373,1758651037078,-3503.93745374,0.00023826,2]
[387212374,1758651037090,-605.13164189,0.00023826,2]
[387212375,1758651037101,-1466.7404661,0.00023826,2]
[387212376,1758651037111,-354.81445321,0.00023835,2]
[387212377,1758651039190,-304.73858801,0.00023551,2]
[387212378,1758651039217,-204.04775006,0.00023551,2]
[387212379,1758651039229,-210.34423017,0.00023551,2]
[387212380,1758651039240,-5445.18554679,0.00023835,2]
[387212381,1758651039251,-150.0,0.00023836,2]
[387212382,1758651039262,-500.0,0.00023836,2]
[387212384,1758651039272,-500.0,0.00023836,2]
[387212385,1758651039283,-500.0,0.00023836,2]
[387212386,1758651039293,-500.0,0.00023836,2]
[387212387,1758651039305,-422.0,0.00023836,2]
[387212388,1758651039315,-516.64379166,0.0002388,7]
[387212389,1758651039325,-150.0,0.00023881,4]
[387212390,1758651039336,-150.0,0.00023881,4]
[387212391,1758651039346,-150.0,0.00023881,4]
[387212392,1758651039357,-687.49610702,0.00023897,2]
[387212393,1758651040288,-522.1307081,0.00023897,2]
[387212394,1758651040300,-3148.48370042,0.00023897,2]
[387212395,1758651040310,-1500.0,0.000239,30]
[387212396,1758651040319,-961.01629958,0.000239,8]
[387212397,1758651040331,-1738.98370042,0.000239,8]
[387212398,1758651040341,-500.0,0.00023929,5]
[387212399,1758651040351,-8.41629958,0.00023945,2]
[387212400,1758651040455,-370.58370042,0.00023945,2]
[387212401,1758651040465,-54.25813108,0.00023946,2]
[387212402,1758651040718,-151.0,0.00023655,7]
[387212403,1758651040728,-113.74186892,0.00023946,2]
[387212404,1758651040738,-185.25813108,0.00024,2]
[387212405,1758651040758,-3814.74186892,0.00024,2]
[387212406,1758651040769,-179.91,0.0002403,2]
[387212407,1758651040779,-168.0,0.00024057,2]
[387212408,1758651040790,-1584.75969325,0.0002406,2]
[387212412,1758651042649,-151.0,0.00023655,7]
[387212413,1758651042658,-153.842065,0.00023655,7]
[387212414,1758651042667,-151.0,0.00023655,7]
[387212415,1758651042677,-154.185596,0.00023655,7]
[387212416,1758651042686,-590.27414674,0.0002406,2]
[387212417,1758651042702,-2183.07667555,0.0002406,2]
[387212418,1758651042712,-1219.15489449,0.00024088,2]
[387212419,1758651042721,-734.5683597,0.000241,60]
[387212441,1758651046095,-10000000.0,0.00034747,30]
[387212442,1758651047208,-780.212,0.00021947,2]
[387212443,1758651047219,-201.883191,0.00023655,7]
[387212444,1758651047229,-151.0,0.00023655,7]
[387212445,1758651047241,-204.026888,0.00023655,7]
[387212446,1758651047252,-151.0,0.00023655,7]
[387212447,1758651047263,-201.883191,0.00023655,7]
[387212448,1758651047274,-3370.29396992,0.000241,60]
[387212449,1758651047322,-135.13767038,0.000241,60]
[387212450,1758651047332,-250.0,0.0002411,2]
[387212451,1758651047342,-341.83554641,0.0002411,2]
[387212452,1758651047362,-158.16445359,0.0002411,2]
[387212453,1758651047372,-500.0,0.0002411,2]
[387212454,1758651047382,-368.49171341,0.0002411,2]
[387212455,1758651047393,-488.48976583,0.0002411,2]
[387212456,1758651053292,-10000000.0,0.00034747,30]
[387212457,1758651057077,-10000000.0,0.00034747,30]
[387212458,1758651069223,-300.0,0.00020786,2]
[387212459,1758651069250,-2500.0,0.00020787,2]
[387212460,1758651069629,-12052.22380513,0.00020787,2]
[387212463,1758651232176,-300.0,0.00018979,2]
[387212466,1758651279832,169.0,8.3e-07,2]
[387212472,1758651519157,163.35,0.00022025,30]
[387212473,1758651757233,475.5,0.00023,30]
[387212799,1758652208768,-242.0,0.000188,2]
[387212800,1758652208798,-195.0,0.0001889,2]
[387212801,1758652208824,-189.339,0.00018979,2]
[387212802,1758652208853,-195.0,0.00019246,2]
[387212803,1758652209025,-857.322,0.00019355,2]
[387212822,1758652231582,-1202.39332508,0.00019355,2]
[387212823,1758652231592,-1749.40046792,0.00019395,2]
[387212824,1758652231622,-1016.03034808,0.00019395,2]
[387212825,1758652231634,-1885.479184,0.00019395,2]
[387212826,1758652231644,-292.82172087,0.000197,2]
[387212827,1758652231654,-2028.56,0.00019727,2]
[387212828,1758652231664,-1200.0,0.00019899,2]
[387212829,1758652231673,-300.0,0.00019899,2]
[387212830,1758652231683,-300.0,0.00019899,2]
[387212831,1758652231692,-300.0,0.000199,7]
[387212832,1758652231702,-177.52326857,0.000199,2]
[387212833,1758652231711,-1663.53075983,0.000199,2]
[387212834,1758652231721,-892.84888985,0.000199,2]
[387212835,1758652231730,-176.34329556,0.000199,2]
[387212836,1758652231740,-1840.53081965,0.000199,2]
[387212837,1758652231749,-1840.53081965,0.000199,2]
[387212838,1758652231759,-850.0,0.00019972,2]
[387212839,1758652231768,-500.0,0.00019973,2]
[387212840,1758652231778,-504.27880919,0.00019973,2]
[387212841,1758652231787,-500.0,0.00019973,2]
[387212842,1758652231796,-506.0293821,0.00019973,2]
[387212843,1758652231806,-500.0,0.00019973,2]
[387212844,1758652231815,-500.0,0.00019973,2]
[387212845,1758652231825,-500.0,0.00019973,2]
[387212846,1758652231834,-500.0,0.00019973,2]
[387212847,1758652231843,-500.0,0.00019973,2]
[387212848,1758652231853,-373.36051218,0.00019973,2]
[387212849,1758652231862,-500.0,0.00019973,2]
[387212850,1758652231871,-237.0,0.0001998,2]
[387212851,1758652231881,-323.89,0.0001999,2]
[387212852,1758652231891,-323.89,0.0001999,2]
[387212853,1758652231900,-323.89,0.0001999,2]
[387212854,1758652231910,-323.89,0.0001999,2]
[387212855,1758652231919,-323.89,0.0001999,2]
[387212856,1758652231928,-152.39,0.0001999,2]
[387212857,1758652231938,-151.0,0.00019997,2]
[387212858,1758652231947,-1200.0,0.00019998,2]
[387212859,1758652231956,-579.27725794,0.00019999,2]
[387212860,1758652231966,-299.02085601,0.00019999,2]
[387212861,1758652231975,-292.28358434,0.00019999,2]
[387212862,1758652231984,-500.0,0.00019999,2]
[387212864,1758652231994,-500.0,0.00019999,2]
[387212865,1758652232004,-563.15931374,0.00019999,2]
[387212866,1758652232013,-500.0,0.00019999,2]
[387212867,1758652232024,-52790.35760003,0.0002,2]
[387212868,1758652232038,-224537.25972659,0.0002,2]
[387212880,1758652232165,-15541.93050151,0.0002,2]
[387212882,1758652232176,-1121.12,0.0002,2]
[387212885,1758652232209,-2841.28408174,0.0002,2]
[387212886,1758652232224,-289863.76072531,0.0002,2]
[387212889,1758652237487,-4654.94043953,0.0002,2]
[387212892,1758652237500,-581.55441916,0.0002,2]
[387212893,1758652237511,-400.0,0.0002,2]
[387212894,1758652237541,-559.1,0.0002,2]
[387212895,1758652237552,-15854.28835972,0.0002,2]
[387212896,1758652237595,-3180.8655,0.0002,2]
[387212897,1758652237606,-1701.2,0.0002,2]
[387212898,1758652237617,-1715.65534091,0.0002,2]
[387212899,1758652237650,-2889.12326768,0.0002,2]
[387212900,1758652237661,-9788.09472309,0.0002,2]
[387212901,1758652237704,-1144.45393648,0.0002,2]
[387212902,1758652237836,-150373.00428804,0.0002,2]
[387212903,1758652237846,-25819.29264865,0.0002,5]
[387212904,1758652237855,-2631476.84325452,0.0002,2]
[387212905,1758652237864,-14163.3425813,0.0002,20]
[387212906,1758652237874,-476.03685957,0.0002,3]
[387212907,1758652237884,-400.0,0.0002,2]
[387212908,1758652237893,-4000.0,0.0002,4]
[387212909,1758652237902,-2503.09,0.00020079,2]
[387212910,1758652237912,-1000.0,0.00020219,2]
[387212911,1758652237921,-24846.77,0.00020272,2]
[387212912,1758652237931,-2247.76,0.00020295,2]
[387212913,1758652237940,-4474.17608857,0.00020301,2]
[387212914,1758652237949,-177.52326848,0.00020509,2]
[387212915,1758652237958,-1000.0,0.00020521,2]
[387212916,1758652237968,-871.77800496,0.00020521,2]
[387212917,1758652237977,-278.72102096,0.00020521,2]
[387212918,1758652237986,-1000.0,0.00020521,2]
[387212919,1758652237995,-892.84888979,0.00020604,2]
[387212920,1758652238005,-195.0,0.0002068,2]
[387212921,1758652238015,-17947.77619487,0.0002079,2]
[387212922,1758652238024,-500.0,0.000208,2]
[387212924,1758652238033,-400.0,0.000208,2]
[387212926,1758652238042,-500.0,0.000208,2]
[387212928,1758652238052,-500.0,0.000208,2]
[387212930,1758652238061,-503.57109575,0.000208,2]
[387212932,1758652238071,-150.0,0.00020877,2]
[387212934,1758652238080,-2500.0,0.00020877,2]
[387212936,1758652238089,-2000.0,0.00020877,3]
[387212938,1758652238101,-300.0,0.00020877,2]
[387212940,1758652238111,-300.0,0.00020877,2]
[387212942,1758652238121,-195.0,0.00020877,2]
[387212944,1758652238133,-250.0,0.00020877,2]
[387212978,1758652238425,-1663.53075978,0.00020886,2]
[387212981,1758652238454,-176.0,0.00020986,2]
[387212983,1758652238464,-2800.03791651,0.00021,2]
[387212985,1758652238474,-500.0,0.00021068,2]
[387212987,1758652238483,-177.52326848,0.00021118,2]
[387212989,1758652238492,-232.0,0.0002117,2]
[387212991,1758652238501,-516.64379166,0.00021216,2]
[387212993,1758652238510,-892.84888979,0.00021309,2]
[387212995,1758652238519,-472.08794461,0.00021348,2]
[387212997,1758652238529,-3000.0,0.0002135,2]
[387212999,1758652238538,-6716.31,0.00021682,2]
[387213001,1758652238547,-177.52326848,0.00021726,2]
[387213003,1758652238557,-176.0,0.00021773,2]
[387213005,1758652238566,-1680.0,0.00021774,2]
[387213007,1758652238576,-1000.0,0.00021799,2]
[387213009,1758652238585,-242.63,0.00021802,2]
[387213011,1758652238595,-18894.0,0.0002181,2]
[387213013,1758652238604,-150.0,0.00021824,2]
[387213015,1758652238613,-27480.21,0.00021845,2]
[387213017,1758652238623,-209.2,0.00021868,2]
[387213019,1758652238633,-1663.53075978,0.00021872,2]
[387213021,1758652238642,-700.0,0.000219,7]
[387213023,1758652238652,-58458.49682004,0.000219,2]
[387213025,1758652238661,-823.34,0.00021903,2]
[387213027,1758652238670,-4851.21820871,0.00021912,2]
[387213029,1758652238680,-151.0,0.00021961,2]
[387213031,1758652238689,-151.0,0.00021961,2]
[387213033,1758652238699,-151.0,0.00021961,2]
[387213035,1758652238709,-151.0,0.00021961,2]
[387213037,1758652238718,-151.0,0.00021961,2]
[387213039,1758652238728,-151.0,0.00021961,2]
[387213041,1758652238737,-151.0,0.00021961,2]
[387213043,1758652238748,-151.0,0.00021961,2]
[387213045,1758652238757,-151.0,0.00021961,2]
[387213047,1758652238766,-151.0,0.00021961,2]
[387213049,1758652238776,-155.2589367,0.00021961,2]
[387213051,1758652238786,-151.0,0.00021961,2]
[387213053,1758652238795,-151.0,0.00021961,2]
[387213055,1758652238805,-151.0,0.00021961,2]
[387213057,1758652238815,-151.0,0.00021961,2]
[387213059,1758652238824,-151.0,0.00021961,2]
[387213061,1758652238834,-151.0,0.00021961,2]
[387213063,1758652238843,-151.0,0.00021961,2]
[387213065,1758652238853,-4177.0,0.00021974,2]
[387213067,1758652238862,-4523.0,0.00021974,2]
[387213069,1758652238872,-3391.0,0.00021974,2]
[387213071,1758652238881,-500.0,0.00022,14]
[387213073,1758652238891,-500.0,0.00022,14]
[387213075,1758652238901,-248.0,0.00022,2]
[387213077,1758652238911,-383507.04956285,0.00022,2]
[387213079,1758652238920,-3821.70603166,0.00022,2]
[387213081,1758652238930,-1504.40757028,0.00022,14]
[387213083,1758652238940,-500.0,0.00022,14]
[387213085,1758652238949,-4000.0,0.00022,4]
[387213087,1758652238959,-35267.57,0.00022,7]
[387213089,1758652238969,-516.64379166,0.00022,7]
[387213091,1758652238978,-892.84888979,0.00022013,2]
[387213093,1758652238988,-197.68,0.00022014,2]
[387213095,1758652238997,-172.87,0.00022014,2]
[387213097,1758652239007,-150.0,0.00022044,4]
[387213098,1758652239017,-150.0,0.00022044,4]